[Event "Live Chess"]
[Site "Chess.com"]
[Date "2024.06.02"]
[Round "-"]
[White "Mangoalo"]
[Black "matt1979"]
[Result "1-0"]
[WhiteElo "1080"]
[BlackElo "1419"]
[TimeControl "300"]
[EndTime "7:53:40 PDT"]
[Termination "Mangoalo won on time"]

1. e4 {[%clk 0:04:59.1]} 1... d6 {[%clk 0:04:58.3]} 2. Nf3 {[%clk 0:04:59]} 2...
Nf6 {[%clk 0:04:57.1]} 3. Nc3 {[%clk 0:04:57.1]} 3... Nbd7 {[%clk 0:04:55.5]} 4.
d4 {[%clk 0:04:56.3]} 4... e5 {[%clk 0:04:54.8]} 5. dxe5 {[%clk 0:04:53.8]} 5...
dxe5 {[%clk 0:04:50]} 6. Bg5 {[%clk 0:04:53.2]} 6... Be7 {[%clk 0:04:47.4]} 7.
Bb5 {[%clk 0:04:50.7]} 7... c6 {[%clk 0:04:46.5]} 8. Bd3 {[%clk 0:04:48.8]} 8...
Qc7 {[%clk 0:04:45.6]} 9. O-O {[%clk 0:04:46.9]} 9... O-O {[%clk 0:04:44.5]} 10.
Re1 {[%clk 0:04:45]} 10... h6 {[%clk 0:04:43.2]} 11. Bxf6 {[%clk 0:04:43.7]}
11... Nxf6 {[%clk 0:04:41.7]} 12. Qe2 {[%clk 0:04:43.6]} 12... Bb4 {[%clk
0:04:34.9]} 13. Rad1 {[%clk 0:04:37.2]} 13... Bg4 {[%clk 0:04:31.9]} 14. h3
{[%clk 0:04:34]} 14... Bh5 {[%clk 0:04:26.3]} 15. a3 {[%clk 0:04:23.4]} 15...
Bxc3 {[%clk 0:04:18.8]} 16. bxc3 {[%clk 0:04:23.3]} 16... Rad8 {[%clk
0:04:10.5]} 17. c4 {[%clk 0:04:21]} 17... Qb6 {[%clk 0:03:57.8]} 18. Rb1 {[%clk
0:04:19]} 18... Qc7 {[%clk 0:03:56.7]} 19. a4 {[%clk 0:04:17.4]} 19... b6 {[%clk
0:03:55.3]} 20. Red1 {[%clk 0:04:13.8]} 20... Rd7 {[%clk 0:03:48.8]} 21. Rd2
{[%clk 0:04:10.7]} 21... Rfd8 {[%clk 0:03:47.3]} 22. Rbd1 {[%clk 0:04:09.1]}
22... Bg6 {[%clk 0:03:42.1]} 23. Qe3 {[%clk 0:04:00.8]} 23... c5 {[%clk
0:03:24.8]} 24. Ne1 {[%clk 0:03:39.1]} 24... Qb7 {[%clk 0:03:16.1]} 25. Nf3
{[%clk 0:03:33.7]} 25... Qc7 {[%clk 0:02:56.4]} 26. Ne1 {[%clk 0:03:30.8]} 26...
Nh5 {[%clk 0:02:49.4]} 27. g4 {[%clk 0:03:26.1]} 27... Nf4 {[%clk 0:02:48]} 28.
f3 {[%clk 0:03:18.6]} 28... Nxh3+ {[%clk 0:02:42.8]} 29. Kg2 {[%clk 0:03:15.8]}
29... Nf4+ {[%clk 0:02:41.9]} 30. Kg3 {[%clk 0:03:14.1]} 30... Nxd3 {[%clk
0:02:40.6]} 31. cxd3 {[%clk 0:03:11.7]} 31... Qd6 {[%clk 0:02:34.5]} 32. Kf2
{[%clk 0:03:02.1]} 32... Qf6 {[%clk 0:02:32]} 33. Ke2 {[%clk 0:02:52.7]} 33...
Qh4 {[%clk 0:02:28.6]} 34. Qf2 {[%clk 0:02:51.7]} 34... Qxf2+ {[%clk 0:02:23]}
35. Kxf2 {[%clk 0:02:50]} 35... h5 {[%clk 0:02:17.2]} 36. gxh5 {[%clk
0:02:46.2]} 36... Bxh5 {[%clk 0:02:16.1]} 37. Ke3 {[%clk 0:02:45.5]} 37... Rd6
{[%clk 0:02:13.5]} 38. Ng2 {[%clk 0:02:39.2]} 38... Rg6 {[%clk 0:02:09.4]} 39.
Nh4 {[%clk 0:02:37.9]} 39... Rg5 {[%clk 0:02:04.4]} 40. Nf5 {[%clk 0:02:35.5]}
40... Re8 {[%clk 0:01:56.7]} 41. Rh1 {[%clk 0:02:29.9]} 41... Bg6 {[%clk
0:01:51.2]} 42. Rdh2 {[%clk 0:02:21.3]} 42... f6 {[%clk 0:01:27]} 43. Nd6 {[%clk
0:02:13.8]} 43... Kf8 {[%clk 0:01:15.8]} 44. Nxe8 {[%clk 0:02:10.4]} 44... Kxe8
{[%clk 0:01:13]} 45. Rh8+ {[%clk 0:01:57.3]} 45... Kf7 {[%clk 0:01:11.9]} 46.
Ra8 {[%clk 0:01:54.2]} 46... a5 {[%clk 0:01:09]} 47. Ra6 {[%clk 0:01:48.6]}
47... f5 {[%clk 0:01:01.9]} 48. exf5 {[%clk 0:01:34.1]} 48... Bxf5 {[%clk
0:00:58.2]} 49. Rxb6 {[%clk 0:01:32.2]} 49... Be6 {[%clk 0:00:41.5]} 50. Rb5
{[%clk 0:01:26.7]} 50... e4 {[%clk 0:00:38.3]} 51. dxe4 {[%clk 0:01:19.7]} 51...
Rg3 {[%clk 0:00:33.4]} 52. Rxc5 {[%clk 0:01:15.3]} 52... Bg4 {[%clk 0:00:31.1]}
53. Rf1 {[%clk 0:01:07.5]} 53... Bh3 {[%clk 0:00:29.5]} 54. Rf2 {[%clk
0:01:04.9]} 54... Ke6 {[%clk 0:00:23]} 55. Rxa5 {[%clk 0:01:02.4]} 55... g5
{[%clk 0:00:15.5]} 56. Rf5 {[%clk 0:00:57.8]} 56... g4 {[%clk 0:00:13.6]} 57. a5
{[%clk 0:00:55.9]} 57... gxf3 {[%clk 0:00:00.7]} 58. R2xf3 {[%clk 0:00:55.3]}
58... Bxf5 {[%clk 0:00:00.1]} 59. Rxg3 {[%clk 0:00:52.8]} 1-0

[Event "Live Chess"]
[Site "Chess.com"]
[Date "2024.06.02"]
[Round "-"]
[White "raimundklein"]
[Black "kylet1990"]
[Result "1-0"]
[WhiteElo "1590"]
[BlackElo "766"]
[TimeControl "300"]
[EndTime "7:53:44 PDT"]
[Termination "raimundklein won by checkmate"]

1. e4 {[%clk 0:04:58.3]} 1... c6 {[%clk 0:04:58.6]} 2. Nf3 {[%clk 0:04:56.3]}
2... d5 {[%clk 0:04:57.4]} 3. exd5 {[%clk 0:04:55.4]} 3... cxd5 {[%clk
0:04:56.2]} 4. Ne5 {[%clk 0:04:54.5]} 4... Bf5 {[%clk 0:04:49.4]} 5. Bb5+ {[%clk
0:04:51.4]} 5... Bd7 {[%clk 0:04:43.5]} 6. Nxd7 {[%clk 0:04:49.9]} 6... Nxd7
{[%clk 0:04:41.4]} 7. d4 {[%clk 0:04:47.3]} 7... Qa5+ {[%clk 0:04:38.9]} 8. Nc3
{[%clk 0:04:44.6]} 8... a6 {[%clk 0:04:36.6]} 9. Bd3 {[%clk 0:04:42.1]} 9... e6
{[%clk 0:04:27.2]} 10. O-O {[%clk 0:04:40]} 10... Bd6 {[%clk 0:04:24.3]} 11. f4
{[%clk 0:04:36.3]} 11... Ngf6 {[%clk 0:04:19.2]} 12. h3 {[%clk 0:04:21.9]} 12...
Qc7 {[%clk 0:04:14.9]} 13. g4 {[%clk 0:04:16.2]} 13... O-O-O {[%clk 0:03:54.8]}
14. Qf3 {[%clk 0:04:07.2]} 14... h6 {[%clk 0:03:48.4]} 15. Be3 {[%clk
0:03:56.8]} 15... h5 {[%clk 0:03:38.4]} 16. Ne2 {[%clk 0:03:49.8]} 16... hxg4
{[%clk 0:03:33.3]} 17. hxg4 {[%clk 0:03:48.3]} 17... Rh4 {[%clk 0:03:25.7]} 18.
Ng3 {[%clk 0:03:27.4]} 18... Rdh8 {[%clk 0:03:18]} 19. c4 {[%clk 0:03:14.1]}
19... Nxg4 {[%clk 0:03:14.5]} 20. Rfc1 {[%clk 0:03:02.5]} 20... Kb8 {[%clk
0:02:54.6]} 21. cxd5 {[%clk 0:03:00.4]} 21... Qd8 {[%clk 0:02:52]} 22. dxe6
{[%clk 0:02:57.4]} 22... fxe6 {[%clk 0:02:48.4]} 23. d5 {[%clk 0:02:31.6]} 23...
Nxe3 {[%clk 0:02:45.4]} 24. Qxe3 {[%clk 0:02:29.6]} 24... g5 {[%clk 0:02:37.7]}
25. Qxe6 {[%clk 0:02:20.9]} 25... Nc5 {[%clk 0:02:13.9]} 26. Qf5 {[%clk
0:01:59.2]} 26... gxf4 {[%clk 0:02:01.7]} 27. Nf1 {[%clk 0:01:52.3]} 27... Nxd3
{[%clk 0:01:49]} 28. Qxd3 {[%clk 0:01:50.4]} 28... Qg5+ {[%clk 0:01:42.1]} 29.
Kf2 {[%clk 0:01:48.5]} 29... Rg8 {[%clk 0:01:14.7]} 30. a3 {[%clk 0:01:42.5]}
30... f3 {[%clk 0:01:05.4]} 31. Rc4 {[%clk 0:01:20.2]} 31... Bg3+ {[%clk
0:01:00.4]} 32. Kxf3 {[%clk 0:01:14.1]} 32... Rf8+ {[%clk 0:00:54]} 33. Ke2
{[%clk 0:01:13.1]} 33... Rh2+ {[%clk 0:00:50.6]} 34. Kd1 {[%clk 0:01:12]} 34...
Qh5+ {[%clk 0:00:43.9]} 35. Kc1 {[%clk 0:01:09.4]} 35... Rh1 {[%clk 0:00:40.7]}
36. Kc2 {[%clk 0:01:05.6]} 36... Rf2+ {[%clk 0:00:31.4]} 37. Kb3 {[%clk
0:00:58.3]} 37... Rhxf1 {[%clk 0:00:26.1]} 38. Rxf1 {[%clk 0:00:56.3]} 38...
Rxf1 {[%clk 0:00:21.1]} 39. Qxf1 {[%clk 0:00:55]} 39... Qe8 {[%clk 0:00:19]} 40.
Rb4 {[%clk 0:00:49.1]} 40... a5 {[%clk 0:00:17.3]} 41. Qb5 {[%clk 0:00:44.1]}
41... Qe3+ {[%clk 0:00:15.3]} 42. Ka2 {[%clk 0:00:42.2]} 42... Qd2 {[%clk
0:00:12.8]} 43. Rb3 {[%clk 0:00:39.9]} 43... a4 {[%clk 0:00:11.5]} 44. Qxb7#
{[%clk 0:00:38.7]} 1-0

[Event "Live Chess"]
[Site "Chess.com"]
[Date "2024.06.02"]
[Round "-"]
[White "ACM42"]
[Black "Dashman93"]
[Result "1-0"]
[WhiteElo "2173"]
[BlackElo "2148"]
[TimeControl "300"]
[EndTime "7:53:45 PDT"]
[Termination "ACM42 won by resignation"]

1. e4 {[%clk 0:04:58.9]} 1... e5 {[%clk 0:04:59.3]} 2. Nf3 {[%clk 0:04:54.7]}
2... Nf6 {[%clk 0:04:58.6]} 3. Nc3 {[%clk 0:04:53]} 3... Nc6 {[%clk 0:04:57.7]}
4. d4 {[%clk 0:04:43.9]} 4... exd4 {[%clk 0:04:56.4]} 5. Nxd4 {[%clk 0:04:41.4]}
5... Bb4 {[%clk 0:04:55.9]} 6. Nxc6 {[%clk 0:04:37.5]} 6... dxc6 {[%clk
0:04:55.8]} 7. Qxd8+ {[%clk 0:04:34.5]} 7... Kxd8 {[%clk 0:04:55.7]} 8. Bg5
{[%clk 0:04:33.2]} 8... Ke7 {[%clk 0:04:53.9]} 9. Bd3 {[%clk 0:04:27.5]} 9... h6
{[%clk 0:04:51.5]} 10. Bh4 {[%clk 0:04:25.3]} 10... g5 {[%clk 0:04:50.2]} 11.
Bg3 {[%clk 0:04:23.7]} 11... Ba5 {[%clk 0:04:45.4]} 12. O-O-O {[%clk 0:04:13.8]}
12... Be6 {[%clk 0:04:43]} 13. a3 {[%clk 0:04:05.6]} 13... Bxc3 {[%clk
0:04:40.3]} 14. bxc3 {[%clk 0:04:04.3]} 14... Rac8 {[%clk 0:04:38.2]} 15. f4
{[%clk 0:03:58.1]} 15... Nh5 {[%clk 0:04:36.6]} 16. f5 {[%clk 0:03:53.3]} 16...
Nxg3 {[%clk 0:04:34.9]} 17. hxg3 {[%clk 0:03:49.5]} 17... Bd7 {[%clk 0:04:32.3]}
18. e5 {[%clk 0:03:47.1]} 18... c5 {[%clk 0:04:28.7]} 19. f6+ {[%clk 0:03:42.1]}
19... Kf8 {[%clk 0:04:27.4]} 20. Be4 {[%clk 0:03:28.5]} 20... Bg4 {[%clk
0:04:15.8]} 21. Rd5 {[%clk 0:03:22.4]} 21... b6 {[%clk 0:04:10.1]} 22. Bd3
{[%clk 0:03:12.5]} 22... Be6 {[%clk 0:03:50.5]} 23. Ba6 {[%clk 0:03:09.9]} 23...
Bxd5 {[%clk 0:03:45.8]} 24. Bxc8 {[%clk 0:03:08.5]} 24... Bxg2 {[%clk
0:03:45.1]} 25. Rd1 {[%clk 0:03:05.7]} 25... Ke8 {[%clk 0:03:43]} 26. Bd7+
{[%clk 0:02:58.5]} 26... Kf8 {[%clk 0:03:40.8]} 27. Bh3 {[%clk 0:02:52.1]} 1-0

[Event "Live Chess"]
[Site "Chess.com"]
[Date "2024.06.02"]
[Round "-"]
[White "ClassyChameleon"]
[Black "f4nomore"]
[Result "1/2-1/2"]
[WhiteElo "1530"]
[BlackElo "1276"]
[TimeControl "300"]
[EndTime "7:53:52 PDT"]
[Termination "Game drawn by repetition"]

1. e4 {[%clk 0:04:59.6]} 1... g6 {[%clk 0:04:58.5]} 2. Nf3 {[%clk 0:04:59.2]}
2... Bg7 {[%clk 0:04:53.3]} 3. d4 {[%clk 0:04:58.4]} 3... d6 {[%clk 0:04:52.2]}
4. Bc4 {[%clk 0:04:57.4]} 4... e6 {[%clk 0:04:47.8]} 5. d5 {[%clk 0:04:55.7]}
5... e5 {[%clk 0:04:46.1]} 6. O-O {[%clk 0:04:54.4]} 6... Ne7 {[%clk 0:04:44.8]}
7. Nc3 {[%clk 0:04:54]} 7... O-O {[%clk 0:04:32.6]} 8. Bg5 {[%clk 0:04:52.6]}
8... Qe8 {[%clk 0:04:29.8]} 9. Qd2 {[%clk 0:04:51]} 9... f5 {[%clk 0:04:24.9]}
10. Bh6 {[%clk 0:04:46.6]} 10... fxe4 {[%clk 0:04:22.8]} 11. Nxe4 {[%clk
0:04:41.7]} 11... Nf5 {[%clk 0:04:20.7]} 12. Bxg7 {[%clk 0:04:35.7]} 12... Kxg7
{[%clk 0:04:18]} 13. Nfg5 {[%clk 0:04:29.1]} 13... h6 {[%clk 0:04:13.5]} 14.
Ne6+ {[%clk 0:04:25.6]} 14... Bxe6 {[%clk 0:04:11]} 15. dxe6 {[%clk 0:04:24.8]}
15... Nc6 {[%clk 0:04:02.8]} 16. c3 {[%clk 0:04:13.4]} 16... a6 {[%clk
0:03:31.2]} 17. Bb3 {[%clk 0:04:07.6]} 17... b5 {[%clk 0:03:27.6]} 18. a4 {[%clk
0:04:03.3]} 18... Na5 {[%clk 0:03:14.7]} 19. Bc2 {[%clk 0:03:35.7]} 19... Qxe6
{[%clk 0:03:11.5]} 20. axb5 {[%clk 0:03:34.9]} 20... Nc4 {[%clk 0:03:07.3]} 21.
Qe2 {[%clk 0:03:23.6]} 21... d5 {[%clk 0:02:58.5]} 22. Nc5 {[%clk 0:03:09.6]}
22... Qf6 {[%clk 0:02:52.6]} 23. Bxf5 {[%clk 0:03:03.4]} 23... Qxf5 {[%clk
0:02:44.5]} 24. bxa6 {[%clk 0:03:00.9]} 24... c6 {[%clk 0:02:29.6]} 25. Nb7
{[%clk 0:02:49.4]} 25... Rf6 {[%clk 0:02:21.9]} 26. b3 {[%clk 0:02:47.7]} 26...
Nd6 {[%clk 0:02:16.7]} 27. Nxd6 {[%clk 0:02:46.2]} 27... Rxd6 {[%clk 0:02:14.7]}
28. b4 {[%clk 0:02:36.2]} 28... Rd7 {[%clk 0:02:10.7]} 29. c4 {[%clk 0:02:33.5]}
29... d4 {[%clk 0:02:05.7]} 30. c5 {[%clk 0:02:29]} 30... d3 {[%clk 0:02:02.2]}
31. Qd2 {[%clk 0:02:27.4]} 31... Rda7 {[%clk 0:01:55.8]} 32. Rfd1 {[%clk
0:02:21.8]} 32... Rxa6 {[%clk 0:01:52.5]} 33. Rxa6 {[%clk 0:02:20]} 33... Rxa6
{[%clk 0:01:50.1]} 34. h3 {[%clk 0:02:19.2]} 34... Qe6 {[%clk 0:01:18.9]} 35.
Qxd3 {[%clk 0:02:16.9]} 35... e4 {[%clk 0:01:14.7]} 36. Qd4+ {[%clk 0:02:05.2]}
36... Kf7 {[%clk 0:01:11.5]} 37. Re1 {[%clk 0:01:59]} 37... g5 {[%clk
0:00:54.4]} 38. Rxe4 {[%clk 0:01:55]} 38... Ra1+ {[%clk 0:00:51.3]} 39. Kh2
{[%clk 0:01:46.8]} 39... Qd5 {[%clk 0:00:45.1]} 40. Qxa1 {[%clk 0:01:15.7]}
40... Qxe4 {[%clk 0:00:43.1]} 41. Qa7+ {[%clk 0:01:07.1]} 41... Kg6 {[%clk
0:00:39.5]} 42. Qb6 {[%clk 0:01:05]} 42... Qf4+ {[%clk 0:00:36.7]} 43. Kg1
{[%clk 0:01:04]} 43... Qc1+ {[%clk 0:00:33.9]} 44. Kh2 {[%clk 0:01:02.5]} 44...
Qf4+ {[%clk 0:00:31.7]} 45. Kg1 {[%clk 0:01:01.9]} 45... Qc1+ {[%clk 0:00:30.5]}
46. Kh2 {[%clk 0:01:01.4]} 46... Qf4+ {[%clk 0:00:29.3]} 1/2-1/2

[Event "Live Chess"]
[Site "Chess.com"]
[Date "2024.06.02"]
[Round "-"]
[White "joellloyd"]
[Black "MagnersCarlsberg2870"]
[Result "0-1"]
[WhiteElo "1901"]
[BlackElo "1776"]
[TimeControl "300"]
[EndTime "7:53:58 PDT"]
[Termination "MagnersCarlsberg2870 won by resignation"]

1. e4 {[%clk 0:04:59]} 1... d6 {[%clk 0:04:57.4]} 2. d4 {[%clk 0:04:58.4]} 2...
Nf6 {[%clk 0:04:56.4]} 3. Nc3 {[%clk 0:04:57.8]} 3... Nbd7 {[%clk 0:04:55.4]} 4.
Nf3 {[%clk 0:04:56.2]} 4... e5 {[%clk 0:04:54.3]} 5. dxe5 {[%clk 0:04:51.6]}
5... dxe5 {[%clk 0:04:53.3]} 6. h3 {[%clk 0:04:47.6]} 6... c6 {[%clk 0:04:51.5]}
7. Be3 {[%clk 0:04:45.7]} 7... h6 {[%clk 0:04:50.3]} 8. Bc4 {[%clk 0:04:42.6]}
8... Be7 {[%clk 0:04:49.1]} 9. a4 {[%clk 0:04:40.3]} 9... Qc7 {[%clk 0:04:47.6]}
10. Qe2 {[%clk 0:04:35.7]} 10... a5 {[%clk 0:04:44.7]} 11. O-O {[%clk
0:04:32.6]} 11... g5 {[%clk 0:04:43.2]} 12. Rfd1 {[%clk 0:04:25.8]} 12... g4
{[%clk 0:04:41.2]} 13. hxg4 {[%clk 0:04:20]} 13... Nxg4 {[%clk 0:04:40.2]} 14.
Nh2 {[%clk 0:03:48.3]} 14... Nxe3 {[%clk 0:04:33.2]} 15. Qxe3 {[%clk 0:03:45.2]}
15... Nf6 {[%clk 0:04:29.8]} 16. f3 {[%clk 0:03:32.6]} 16... b6 {[%clk
0:04:23.4]} 17. Nf1 {[%clk 0:03:26.4]} 17... Bc5 {[%clk 0:04:21.7]} 0-1

[Event "Live Chess"]
[Site "Chess.com"]
[Date "2024.06.02"]
[Round "-"]
[White "Queensandpawns"]
[Black "Inglaterra"]
[Result "0-1"]
[WhiteElo "2260"]
[BlackElo "2054"]
[TimeControl "300"]
[EndTime "7:54:05 PDT"]
[Termination "Inglaterra won by resignation"]

1. e4 {[%clk 0:04:57.8]} 1... e5 {[%clk 0:04:57.3]} 2. d4 {[%clk 0:04:53.8]}
2... exd4 {[%clk 0:04:55.8]} 3. c3 {[%clk 0:04:53.7]} 3... Nf6 {[%clk
0:04:54.4]} 4. Bc4 {[%clk 0:04:52.8]} 4... d6 {[%clk 0:04:41.6]} 5. Nf3 {[%clk
0:04:44.7]} 5... Be7 {[%clk 0:04:36.5]} 6. O-O {[%clk 0:04:40.3]} 6... dxc3
{[%clk 0:04:33]} 7. Nxc3 {[%clk 0:04:36.2]} 7... O-O {[%clk 0:04:32.6]} 8. Qe2
{[%clk 0:04:33.3]} 8... Bg4 {[%clk 0:04:28.7]} 9. h3 {[%clk 0:04:30.9]} 9... Bh5
{[%clk 0:04:27.4]} 10. Bf4 {[%clk 0:04:27.9]} 10... Nc6 {[%clk 0:04:20.6]} 11.
Rad1 {[%clk 0:04:25.3]} 11... Qc8 {[%clk 0:04:07.2]} 12. Qe3 {[%clk 0:04:17.3]}
12... Re8 {[%clk 0:03:58.6]} 13. Rde1 {[%clk 0:04:12.2]} 13... a6 {[%clk
0:03:53.1]} 14. Ng5 {[%clk 0:04:09.9]} 14... Ne5 {[%clk 0:03:38.8]} 15. Bxe5
{[%clk 0:04:06]} 15... dxe5 {[%clk 0:03:38.7]} 16. f4 {[%clk 0:04:01.9]} 16...
exf4 {[%clk 0:03:22.4]} 17. Qxf4 {[%clk 0:04:01.8]} 17... h6 {[%clk 0:03:10.9]}
18. Nxf7 {[%clk 0:03:45]} 18... Bxf7 {[%clk 0:03:02.9]} 19. Bxf7+ {[%clk
0:03:44.9]} 19... Kxf7 {[%clk 0:03:02.1]} 20. e5 {[%clk 0:03:44.8]} 20... Qe6
{[%clk 0:02:52.5]} 21. exf6 {[%clk 0:03:40.4]} 21... Qb6+ {[%clk 0:02:51.1]} 22.
Kh1 {[%clk 0:03:38.1]} 22... Bxf6 {[%clk 0:02:49.4]} 23. Nd5 {[%clk 0:03:31.9]}
23... Qxb2 {[%clk 0:02:37.9]} 24. Nxf6 {[%clk 0:03:24.6]} 24... gxf6 {[%clk
0:02:20.6]} 25. Qxh6 {[%clk 0:03:21]} 25... Rxe1 {[%clk 0:02:16.7]} 26. Rxe1
{[%clk 0:03:20.9]} 26... Rg8 {[%clk 0:02:09]} 27. Qh7+ {[%clk 0:03:10.7]} 27...
Rg7 {[%clk 0:02:06.6]} 28. Qh5+ {[%clk 0:03:09.6]} 28... Rg6 {[%clk 0:02:03.1]}
29. Qd5+ {[%clk 0:03:07]} 29... Kg7 {[%clk 0:01:56.2]} 30. Qf3 {[%clk
0:02:24.1]} 30... Qxa2 {[%clk 0:01:24.7]} 31. Re7+ {[%clk 0:02:20.2]} 31... Kf8
{[%clk 0:01:17.1]} 32. Rxc7 {[%clk 0:02:06.8]} 32... Qa1+ {[%clk 0:01:15.4]} 33.
Kh2 {[%clk 0:02:01.5]} 33... Qe5+ {[%clk 0:01:14.1]} 34. Qg3 {[%clk 0:01:58.8]}
34... Qxg3+ {[%clk 0:01:12.3]} 0-1

[Event "Live Chess"]
[Site "Chess.com"]
[Date "2024.06.02"]
[Round "-"]
[White "Ferrarifan27"]
[Black "degringolade64"]
[Result "1-0"]
[WhiteElo "2155"]
[BlackElo "2089"]
[TimeControl "300"]
[EndTime "7:54:17 PDT"]
[Termination "Ferrarifan27 won on time"]

1. e4 {[%clk 0:04:58.5]} 1... e5 {[%clk 0:04:57.8]} 2. Nf3 {[%clk 0:04:56.8]}
2... Nc6 {[%clk 0:04:56.8]} 3. Bb5 {[%clk 0:04:53.7]} 3... a6 {[%clk 0:04:55.1]}
4. Ba4 {[%clk 0:04:51.2]} 4... Nf6 {[%clk 0:04:53.2]} 5. O-O {[%clk 0:04:44.9]}
5... Nxe4 {[%clk 0:04:46.8]} 6. Re1 {[%clk 0:04:42.8]} 6... Nc5 {[%clk
0:04:42.4]} 7. Bxc6 {[%clk 0:04:41.4]} 7... dxc6 {[%clk 0:04:38.1]} 8. Nxe5
{[%clk 0:04:40.4]} 8... Ne6 {[%clk 0:04:36.2]} 9. d3 {[%clk 0:04:37.2]} 9... Bd6
{[%clk 0:04:33.1]} 10. Nc3 {[%clk 0:04:35.5]} 10... O-O {[%clk 0:04:29.3]} 11.
Nc4 {[%clk 0:04:28.7]} 11... Bc5 {[%clk 0:04:22.2]} 12. Be3 {[%clk 0:04:25.4]}
12... Nd4 {[%clk 0:04:20.1]} 13. Ne4 {[%clk 0:04:08.6]} 13... Ba7 {[%clk
0:04:17.6]} 14. c3 {[%clk 0:04:07.2]} 14... Nf5 {[%clk 0:04:14.6]} 15. Bxa7
{[%clk 0:04:05.2]} 15... Rxa7 {[%clk 0:04:14.5]} 16. d4 {[%clk 0:04:03.5]} 16...
Be6 {[%clk 0:04:11.2]} 17. Ne3 {[%clk 0:03:59.9]} 17... Ra8 {[%clk 0:04:05.4]}
18. Nc5 {[%clk 0:03:57.1]} 18... Nxe3 {[%clk 0:03:59.3]} 19. fxe3 {[%clk
0:03:41.8]} 19... Qg5 {[%clk 0:03:55.5]} 20. Nxe6 {[%clk 0:03:35.8]} 20... fxe6
{[%clk 0:03:54]} 21. Qb3 {[%clk 0:03:33.3]} 21... Rf6 {[%clk 0:03:45.7]} 22.
Qxb7 {[%clk 0:03:29.5]} 22... Raf8 {[%clk 0:03:43.7]} 23. Qxc6 {[%clk
0:03:26.4]} 23... Rf2 {[%clk 0:03:41.1]} 24. Qxe6+ {[%clk 0:03:23.8]} 24... Kh8
{[%clk 0:03:39.5]} 25. Qe4 {[%clk 0:03:17.4]} 25... Qf6 {[%clk 0:03:30.3]} 26.
b3 {[%clk 0:03:04.6]} 26... h5 {[%clk 0:03:27.8]} 27. a4 {[%clk 0:02:54.1]}
27... h4 {[%clk 0:03:15.1]} 28. h3 {[%clk 0:02:52.4]} 28... Qg5 {[%clk
0:02:46.7]} 29. Rf1 {[%clk 0:02:33.3]} 29... Qg3 {[%clk 0:02:45.1]} 30. Rxf2
{[%clk 0:02:21.6]} 30... Qxf2+ {[%clk 0:02:29.9]} 31. Kh1 {[%clk 0:02:14.4]}
31... Qb2 {[%clk 0:02:10.9]} 32. Qxh4+ {[%clk 0:02:08.8]} 32... Kg8 {[%clk
0:02:09]} 33. Rg1 {[%clk 0:01:41.3]} 33... Qxc3 {[%clk 0:02:06.7]} 34. Qe7
{[%clk 0:01:26.8]} 34... Qxb3 {[%clk 0:02:02]} 35. Qxc7 {[%clk 0:01:24.7]} 35...
Qxe3 {[%clk 0:02:00.3]} 36. Qc4+ {[%clk 0:01:22.8]} 36... Kh8 {[%clk 0:01:55.9]}
37. Qxa6 {[%clk 0:01:18.9]} 37... Qxd4 {[%clk 0:01:53.5]} 38. Qb5 {[%clk
0:01:13.9]} 38... Ra8 {[%clk 0:01:44.1]} 39. a5 {[%clk 0:01:06.8]} 39... Qa7
{[%clk 0:01:14.9]} 40. Ra1 {[%clk 0:01:02.8]} 40... Rb8 {[%clk 0:01:13.1]} 41.
Qh5+ {[%clk 0:00:58.8]} 41... Kg8 {[%clk 0:01:12.6]} 42. Qd5+ {[%clk 0:00:57.4]}
42... Kh8 {[%clk 0:01:11.2]} 43. a6 {[%clk 0:00:51.9]} 43... Rb2 {[%clk
0:01:06.8]} 44. Qh5+ {[%clk 0:00:35.6]} 44... Kg8 {[%clk 0:01:05.5]} 45. Qd5+
{[%clk 0:00:32.6]} 45... Kh8 {[%clk 0:01:04.6]} 46. Qf3 {[%clk 0:00:29.3]} 46...
Rf2 {[%clk 0:00:57.8]} 47. Qb7 {[%clk 0:00:28.1]} 47... Qd4 {[%clk 0:00:55.5]}
48. Rc1 {[%clk 0:00:20.3]} 48... Qf4 {[%clk 0:00:39.7]} 49. Rc8+ {[%clk
0:00:18]} 49... Kh7 {[%clk 0:00:38.2]} 50. Qb1+ {[%clk 0:00:16.3]} 50... g6
{[%clk 0:00:36]} 51. Qb7+ {[%clk 0:00:12.3]} 51... Kh6 {[%clk 0:00:33.9]} 52.
Rh8+ {[%clk 0:00:11.2]} 52... Kg5 {[%clk 0:00:33]} 53. Qd5+ {[%clk 0:00:10.1]}
53... Qf5 {[%clk 0:00:20.9]} 54. Qxf5+ {[%clk 0:00:09.3]} 54... Kxf5 {[%clk
0:00:20.6]} 55. a7 {[%clk 0:00:08.9]} 55... Rf1+ {[%clk 0:00:19.2]} 56. Kh2
{[%clk 0:00:08.3]} 56... Ra1 {[%clk 0:00:18.9]} 57. a8=Q {[%clk 0:00:07.8]}
57... Rxa8 {[%clk 0:00:17.3]} 58. Rxa8 {[%clk 0:00:07.7]} 58... Kf6 {[%clk
0:00:15.9]} 59. Ra5 {[%clk 0:00:07.6]} 59... Ke6 {[%clk 0:00:14.9]} 60. Ra2
{[%clk 0:00:07.5]} 60... Kf6 {[%clk 0:00:14.1]} 61. g4 {[%clk 0:00:07.4]} 61...
Ke6 {[%clk 0:00:13.4]} 62. Kg3 {[%clk 0:00:07.3]} 62... Kf6 {[%clk 0:00:12.8]}
63. h4 {[%clk 0:00:07.2]} 63... Kg7 {[%clk 0:00:10.9]} 64. Ra5 {[%clk
0:00:07.1]} 64... Kf6 {[%clk 0:00:09.7]} 65. h5 {[%clk 0:00:07]} 65... gxh5
{[%clk 0:00:08.5]} 66. gxh5 {[%clk 0:00:06.9]} 66... Kg7 {[%clk 0:00:07.5]} 67.
h6+ {[%clk 0:00:06.8]} 67... Kh7 {[%clk 0:00:06.5]} 68. Kh4 {[%clk 0:00:06.7]}
68... Kxh6 {[%clk 0:00:05.3]} 69. Kg4 {[%clk 0:00:05.9]} 69... Kg6 {[%clk
0:00:04.6]} 70. Ra6+ {[%clk 0:00:04.9]} 70... Kf7 {[%clk 0:00:04.5]} 71. Kf5
{[%clk 0:00:04.3]} 71... Ke7 {[%clk 0:00:04.2]} 72. Ke5 {[%clk 0:00:04.2]} 72...
Kf7 {[%clk 0:00:03.4]} 73. Kd5 {[%clk 0:00:04.1]} 73... Kg7 {[%clk 0:00:02.3]}
74. Rb6 {[%clk 0:00:03.8]} 74... Kf7 {[%clk 0:00:01.6]} 75. Rc6 {[%clk
0:00:03.7]} 75... Kg7 {[%clk 0:00:01]} 76. Rc7+ {[%clk 0:00:03.6]} 1-0